Cogmind - Beta 14 @@@ ROGUE MODE // 2024.10.25 @ 00:31:00 Player: CONM Result: Destroyed by P-80 Master with Gamma Rifle Performance ------------- Evolutions (9) 4500 Regions Visited (21) 4200 Robots Destroyed (139) 695 Value Destroyed (6185) 6185 Prototype IDs (42) 840 Alien Tech Used (2) 400 Bonus (6091) 6091 TOTAL SCORE: 22911 Bonus ------- High Alert Combat Kills 248 Follower Combat Kills 35 Aligned with FarCom 300 Met Zhirov 300 Met Warlord at Base 500 MAIN.C Attacked Warlord 500 Warlord Defense Kills 474 Met Warlord at Research 2000 Invited to Help at Command 2000 Friendly Fire -266 Cogmind --------- Core Integrity 0/1600 Matter 263/300 Energy 66/100 System Corruption 9% Temperature Cool (4) Movement Flying (27) Location -1/Access Parts ------- > --- POWER (2) -------- (None) > --- PROPULSION (6) --- Cooled Q-thruster Cooled Q-thruster > --- UTILITY (13) ----- Improved Hacking Suite > --- WEAPON (4) ------- (None) > --- INVENTORY (5) ---- Centrium Leg Centrium Wheel Centrium Wheel Advanced Signal Interpreter System Restoration Module Peak State ------------ > --- POWER ------------ Antimatter Reactor Micro Antimatter Reactor > --- PROPULSION ------- Antigrav Array Antigrav Array Antigrav Array > --- UTILITY ---------- Medium Storage Unit Advanced Weight Redist. System Transport Network Coupler Improved Targeting Computer Experimental Melee Analysis Suite Experimental Melee Analysis Suite Advanced Launcher Guidance Computer Improved Kinecellerator Layered Medium Armor Plating Advanced Thermal Shield Hacking Suite Improved Hacking Suite Improved Dynamic Insulation System > --- WEAPON ----------- Enhanced Quantum Rifle Enhanced Quantum Rifle Lance Enhanced Force Lance > --- INVENTORY -------- Light Antimatter Reactor Improved Antigrav System Antigrav Array Antigrav Array Advanced Signal Interpreter Advanced Thermal Shield System Restoration Module Linear Accelerator [Rating: 165] Favorites ----------- Power Light Nuclear Core Engine Angular Momentum Engine Power Core Light Nuclear Core Reactor Micro Antimatter Reactor Propulsion Armored Treads Treads Armored Treads Leg Flexi-carbon Leg Wheel Wheel Hover Unit Antigrav Array Flight Unit Nuclear Pulse Array Utility Advanced Targeting Computer Device Improved Heat Sink Storage High-capacity Storage Unit Processor Advanced Targeting Computer Hackware System Shield Protection Hardened Medium Armor Plating Weapon Small Laser Energy Gun Small Laser Energy Cannon Plasma Cannon Ballistic Gun Assault Rifle Ballistic Cannon Advanced Assault Cannon Launcher Mini Grenade Launcher Impact Weapon Powered Hammer Slashing Weapon Katana Piercing Weapon Lance Build | -11 -10 -10 -10 -9 -8 -7 -7 -6 -5 -5 -5 -5 -4 -4 -4 -4 -4 -3 -3 -2 -1 ------- Run | Yrd Mat Min Exi Min Mat Fac Sto Fac Fac Upp Upp Zhi Pro Fac Upp Upp War Pro Res Res Acc Slots Evolved 18 | . . . . . 4 2 . 2 2 . . . . 2 . . . . 2 2 2 Power 1 | . . . . . . . . . 1 . . . . . . . . . . . . Propulsion 4 | . . . . . 1 . . 1 . . . . . 1 . . . . . . 1 Utility 11 | . . . . . 2 2 . 1 1 . . . . 1 . . . . 2 2 . Weapon 2 | . . . . . 1 . . . . . . . . . . . . . . . 1 Parts Attached 220 | 7 3 3 . . 12 24 15 13 6 1 16 3 15 7 5 3 23 3 18 25 18 Power 22 | 1 . 1 . . 2 3 . 1 . . 5 . 1 . 1 . 2 . 2 1 2 Engine 3 | 1 . . . . . . . . . . 2 . . . . . . . . . . Core 12 | . . 1 . . 2 3 . 1 . . 3 . . . 1 . 1 . . . . Reactor 7 | . . . . . . . . . . . . . 1 . . . 1 . 2 1 2 Propulsion 49 | 2 . 1 . . 1 4 4 2 . . 4 . 1 3 1 1 8 . 6 5 6 Treads 17 | . . . . . . 3 4 2 . . 4 . 1 . 1 . . . 2 . . Leg 10 | . . . . . . . . . . . . . . . . . 7 . 3 . . Wheel 10 | 2 . 1 . . 1 1 . . . . . . . 2 . . 1 . . 2 . Hover 8 | . . . . . . . . . . . . . . . . . . . 1 3 4 Flight 4 | . . . . . . . . . . . . . . 1 . 1 . . . . 2 Utility 79 | 2 1 1 . . 3 9 1 7 4 . 4 2 7 3 1 1 5 1 6 16 5 Device 32 | 1 . . . . . 3 . 3 1 . 2 1 3 2 . . 3 1 4 4 4 Storage 12 | 1 1 . . . . 1 . 1 . . . . 1 . . 1 . . 1 4 1 Processor 14 | . . . . . 2 2 . 2 1 . . . . 1 . . . . 1 5 . Hackware 3 | . . . . . . 1 . . . . . . . . . . . . . 2 . Protection 18 | . . 1 . . 1 2 1 1 2 . 2 1 3 . 1 . 2 . . 1 . Artifact . | . . . . . . . . . . . . . . . . . . . . . . Weapon 70 | 2 2 . . . 6 8 10 3 2 1 3 1 6 1 2 1 8 2 4 3 5 Energy Gun 29 | . . . . . 3 3 4 2 1 1 2 1 1 . 1 . 6 1 . . 3 Energy Cannon 19 | . . . . . 1 1 3 . . . 1 . 4 1 1 1 1 1 2 2 . Ballistic Gun 6 | 2 2 . . . . 2 . . . . . . . . . . . . . . . Ballistic Cannon 4 | . . . . . 1 1 . . . . . . . . . . . . 1 . 1 Launcher 4 | . . . . . 1 1 1 . . . . . . . . . 1 . . . . Special Weapon . | . . . . . . . . . . . . . . . . . . . . . . Impact Weapon 4 | . . . . . . . 2 . 1 . . . 1 . . . . . . . . Slashing Weapon 1 | . . . . . . . . 1 . . . . . . . . . . . . . Piercing Weapon 3 | . . . . . . . . . . . . . . . . . . . 1 1 1 Special Melee Weapon . | . . . . . . . . . . . . . . . . . . . . . . Unidentified Prototypes 11 | . . . . . . . . . . . . 4 1 . . . 4 . . 1 1 Corrupted Parts 1 | . . . . . . . . . . . . . . . . . . . 1 . . System Corruption 14 | . . . . . . . . . . . . . . . . . . . 14 . . Parts Lost 102 | . . 2 . . 5 13 . 2 1 . 15 . 8 7 3 1 5 5 7 . 28 Power 16 | . . 1 . . 1 2 . 1 . . 3 . 1 . 1 . 1 1 1 . 3 Propulsion 30 | . . 1 . . 2 4 . . . . 6 . 3 2 1 1 1 . 3 . 6 Utility 35 | . . . . . 2 1 . 1 . . 4 . 3 3 1 . 3 1 2 . 14 Weapon 21 | . . . . . . 6 . . 1 . 2 . 1 2 . . . 3 1 . 5 Highest Loss Streak 16 | . . 2 . . 4 7 . 1 1 . 6 . 4 7 2 1 3 4 6 . 16 To Critical Strikes 2 | . . . . . . . . . . . 1 . . . . . . . . . 1 Average Slot Usage (%) 76 | . 100 95 85 85 82 92 86 95 92 94 91 66 52 50 14 6 54 56 37 62 70 Engine 1 | . 14 2 . . . . . . . . 2 11 4 . . . 4 . . . . Core 3 | . . 7 . . 5 6 7 5 5 5 7 . . . . . 2 5 2 . . Reactor 1 | . . . . . . . . . . . . . 2 4 . . 2 2 2 7 6 Treads 11 | . . . . . . 17 9 25 23 23 18 11 1 . 1 . . . 5 . . Wheel 2 | . 28 27 28 28 22 1 3 . . . . . . . . . 1 . . 3 . Hover 1 | . . . . . . . . . . . . . . . . . 5 . . 8 10 Device 8 | . 14 . . . . 5 7 6 11 11 10 12 8 9 4 . 5 10 11 12 14 Storage 6 | . 14 14 14 14 9 7 7 6 5 5 5 5 4 4 . 4 5 5 6 4 4 Processor 14 | . . . . . 12 22 23 17 17 17 17 17 17 14 1 . . . 2 11 14 Hackware 1 | . . . . . . 5 . . . . . . . . . . . . . 3 5 Protection 5 | . . 13 14 14 8 . 7 10 9 11 9 5 4 4 . . 8 . . 1 3 Energy Gun 7 | . . . . . 9 9 8 18 11 11 9 . 2 4 1 . 7 5 . . 5 Energy Cannon 1 | . . . . . 5 4 3 . . . . . . . 1 . 3 5 . . . Ballistic Gun 1 | . 28 28 28 28 7 . . . . . . . . . . . . . . . . Impact Weapon 1 | . . . . . . . 2 . . 5 4 . 2 4 . . . . . . . Peak Build Rating 165 | 7 8 10 9 9 26 39 54 54 62 68 79 60 74 63 47 21 101 83 66 138 165 Average Rating 51 | 5 7 8 7 9 19 32 42 49 56 65 69 46 44 47 23 9 53 70 44 97 130 On Entrance 38 | . 7 8 7 9 9 23 38 53 54 62 68 47 60 48 25 2 4 83 66 32 138 Naked Turns 126 | . . . . . . . . . . . . . . 4 26 2 . . 94 . . Heaviest Build 173 | 11 48 52 47 47 60 68 80 143 77 82 106 73 91 61 36 10 79 65 62 173 81 Greatest Support 115 | 20 20 20 20 20 36 60 60 80 80 80 90 56 56 20 28 13 115 95 95 77 87 Greatest Overweight (x) 22 | . 2 4 2 2 3 14 3 1 . 1 3 1 22 14 1 . 6 . 2 5 5 Average Overweight (x) . | . 1 2 2 2 1 . 1 . . . 1 1 4 7 . . . . . 1 . Largest Inventory Capacity 25 | 8 20 20 20 20 20 20 20 25 20 20 20 20 20 15 5 5 5 5 10 25 10 Average Capacity 16 | 7 18 20 20 20 20 20 20 20 20 20 20 20 15 14 5 5 5 5 8 15 9 Most Carried 20 | 5 11 12 13 14 20 20 20 20 19 20 20 17 19 6 5 5 5 5 5 11 10 Average Carried 13 | 2 9 11 11 13 17 18 19 19 17 19 17 14 9 5 4 3 4 3 3 8 8 Final Capacity 20 | 8 20 20 20 20 20 20 20 20 20 20 20 20 15 5 5 5 5 5 5 10 5 Final Carried 20 | 5 11 11 13 14 19 18 17 17 18 20 13 16 5 4 5 3 5 5 4 10 5 Class Distribution -------------------- 48% | Mutant 19% | Skirmisher 8% | Tank 7% | Scavenger-Mutant 5% | Assassin 4% | Scavenger-Gladiator Dominant Class ---------------- Mutant | -10/Materials Mutant | -10/Mines Mutant | -10/Exiles Mutant | -9/Mines Skirmisher | -8/Materials Skirmisher | -7/Factory Skirmisher | -7/Storage Tank | -6/Factory Assassin | -5/Factory Mutant | -5/Upper Caves Mutant | -5/Upper Caves Mutant | -5/Zhirov Mutant | -4/Proximity Caves Mutant | -4/Factory Mutant | -4/Upper Caves Mutant | -4/Upper Caves Tank | -4/Warlord Scavenger-Mutant | -3/Proximity Caves Scavenger-Mutant | -3/Research Mutant | -2/Research Scavenger-Gladiator | -1/Access Resources | -11 -10 -10 -10 -9 -8 -7 -7 -6 -5 -5 -5 -5 -4 -4 -4 -4 -4 -3 -3 -2 -1 ----------- Run | Yrd Mat Min Exi Min Mat Fac Sto Fac Fac Upp Upp Zhi Pro Fac Upp Upp War Pro Res Res Acc Matter Collected 3240 | 212 37 145 . 28 131 621 228 168 49 84 165 . 266 39 45 40 245 35 64 459 179 Remotely . | . . . . . . . . . . . . . . . . . . . . . . Salvage Created 6648 | 47 37 33 . 97 263 929 1077 482 208 140 610 . 1248 89 . . 118 189 56 265 760 Parts 248 | 7 6 3 . 6 22 29 33 17 11 6 19 . 18 4 . . 4 13 1 9 40 Haulers Intercepted 5 | . . . . . 1 1 1 1 . . . . . . . . . . . 1 . Recyclers Shooed 7 | . . . . . 3 . 1 2 . . . . . . . . . . . . 1 Parts Field Recycled . | . . . . . . . . . . . . . . . . . . . . . . Retrieved Matter . | . . . . . . . . . . . . . . . . . . . . . . Parts Self-Destructed 57 | . . . . . . . . . . 6 19 . 19 . . . . 13 . . . Prevented 1 | . . . . . . . . . . . . . 1 . . . . . . . . Kills | -11 -10 -10 -10 -9 -8 -7 -7 -6 -5 -5 -5 -5 -4 -4 -4 -4 -4 -3 -3 -2 -1 ------- Run | Yrd Mat Min Exi Min Mat Fac Sto Fac Fac Upp Upp Zhi Pro Fac Upp Upp War Pro Res Res Acc Combat Hostiles Destroyed 104 | . . 1 . . 6 19 18 3 4 3 11 . 16 1 . . 4 5 1 . 12 Melee 1 | . . . . . . . . . . . . . . . . . . . . . 1 Guns 36 | . . 1 . . 2 2 1 1 3 3 8 . 1 . . . 3 2 . . 9 Cannons 23 | . . . . . 2 12 2 . . . . . 1 . . . 1 3 1 . 1 AOE 18 | . . . . . 2 1 9 . . . . . 4 1 . . . . . . 1 Classes Destroyed 16 | 1 2 1 . 1 4 2 3 . . . . . 1 . . . 1 . . . . Worker 5 | . . . . . 1 1 1 2 . . . . . . . . . . . . . Builder 8 | . 1 . . 1 1 . 1 1 . . . . . 2 . . . . . . 1 Tunneler 4 | 2 . . . . . 1 . 1 . . . . . . . . . . . . . Hauler 5 | . . . . . 1 1 1 1 . . . . . . . . . . . 1 . Recycler 6 | . . . . 1 1 2 . 1 . . . . . . . . . . . 1 . Mechanic 1 | . . . . . . . 1 . . . . . . . . . . . . . . Watcher 6 | . 1 . . . 1 1 2 1 . . . . . . . . . . . . . Swarmer 19 | . . . . . 4 4 2 . . 2 2 . 1 . . . 2 . . . 2 Grunt 36 | . . 1 . . 1 6 11 . . . 3 . 7 . . . 1 3 . . 3 Brawler 3 | . . . . . . . 1 . . . . . 2 . . . . . . . . Duelist 3 | . . . . . . . 1 . . . . . 2 . . . . . . . . Sentry 11 | . . . . . 1 3 1 . . 1 2 . 1 . . . . . 1 . 1 Hunter 8 | . . . . . . 1 1 1 . . 3 . 2 . . . . . . . . Programmer 22 | . . . . . . 5 1 2 4 . 1 . . 1 . . . 2 . . 6 Behemoth 1 | . . . . . . . . . . . . . 1 . . . . . . . . Striker 1 | . . . . . . . . . . . . . . . . . 1 . . . . Best Kill Streak 11 | 1 2 1 . 2 6 5 11 2 2 3 3 . 9 2 . . 2 3 1 1 3 Combat Bots Only 9 | . . 1 . . 5 5 9 1 2 3 3 . 9 1 . . 2 3 1 . 3 Max Kills in Single Turn 5 | 1 1 1 . 1 5 3 3 1 1 2 1 . 5 1 . . 1 1 1 1 1 Gunslinging 1 | . . . . . . . . . . 1 . . . . . . . . . . . Exploded 3 | . . . . . 2 1 2 . . . . . 3 1 . . . . . . 1 Melee 1 | . . . . . . . . . . . . . . . . . . . . . 1 Uniques/NPCs Destroyed . | . . . . . . . . . . . . . . . . . . . . . . Combat | -11 -10 -10 -10 -9 -8 -7 -7 -6 -5 -5 -5 -5 -4 -4 -4 -4 -4 -3 -3 -2 -1 -------- Run | Yrd Mat Min Exi Min Mat Fac Sto Fac Fac Upp Upp Zhi Pro Fac Upp Upp War Pro Res Res Acc Hostile Shots Fired 1348 | . . 18 . . 58 182 52 27 32 11 200 . 91 21 79 36 104 39 94 . 304 Missed 452 | . . 4 . . 17 57 17 8 10 4 38 . 31 4 45 19 43 12 38 . 105 Damage Taken 17578 | . . 357 . . 607 1732 724 332 438 201 2706 . 1342 652 452 294 1119 579 1501 31 4511 Core 4319 | . . 57 . . 170 320 39 41 39 26 254 . 255 233 198 258 103 61 638 9 1618 Absorbed by Shields 601 | . . . . . . . . . . . 180 . 12 . . . 375 . 34 . . Redirected to Shielding 266 | . . . . . . . . . . . . . 135 18 11 . 102 . . . . Ignored by Resistances 146 | . . . . . . . . . . . . . . 6 . . 49 . . . 91 Regen/Repaired (Parts) 3 | . . . . . . . . . . . . . . . . . 3 . . . . Core Remaining (%) 66 | 100 . . . 77 69 . 48 95 . . . . 38 . . . . 25 50 99 . Volleys Fired 315 | 7 4 6 . 3 20 70 23 17 14 4 52 . 16 3 2 . 15 13 14 . 32 Largest 3 | 2 2 2 . 2 3 3 3 3 2 2 2 . 2 1 1 . 2 2 1 . 3 Hottest 360 | 40 40 40 . 40 178 201 319 184 144 163 325 . 325 250 88 . 360 260 100 . 196 Shots Fired 609 | 14 8 12 . 6 39 152 41 48 26 10 102 . 19 3 2 . 19 23 16 . 69 Gun 405 | 14 8 12 . 6 24 48 21 48 26 10 99 . 10 1 2 . 9 10 . . 57 Cannon 180 | . . . . . 12 94 18 . . . 3 . 9 2 . . 4 10 16 . 12 Launcher 24 | . . . . . 3 10 2 . . . . . . . . . 6 3 . . . Special . | . . . . . . . . . . . . . . . . . . . . . . Kinetic 109 | 14 8 12 . 6 . 46 3 . . . . . . . . . . . 8 . 12 Thermal 446 | . . . . . 36 96 36 48 26 10 102 . 19 3 2 . 6 3 2 . 57 Explosive 15 | . . . . . 3 10 2 . . . . . . . . . . . . . . Electromagnetic . | . . . . . . . . . . . . . . . . . . . . . . Entropic 39 | . . . . . . . . . . . . . . . . . 13 20 6 . . Robot Hit Streak 21 | 6 3 5 . 3 4 21 8 17 6 11 21 . 15 6 1 . 3 8 5 . 10 Robot Miss Streak 9 | 2 2 2 . 1 3 1 4 1 1 1 3 . 2 1 1 . 4 9 6 . 2 Penetration Max . | . . . . . . . . . . . . . . . . . . . . . . Secondary Targets 3 | . . . . . . . . . 2 1 . . . . . . . . . . . Max Gunslinging Chain 1 | . . . . . . . . . 1 1 . . . . . . . . . . . Shots Hit Robots 424 | 10 4 7 . 3 22 97 21 46 21 6 75 . 15 4 1 . 12 12 12 6 50 Core Hits 251 | 4 2 3 . 2 11 40 64 16 8 5 22 . 27 4 . . 6 6 2 2 27 Critical Kills 3 | . . . . . . 2 . . . . 1 . . . . . . . . . . Critical Parts Destroyed 3 | . . . . . . . . . . . 3 . . . . . . . . . . Critical Strikes 16 | . . . . . . 3 . 1 1 1 5 . . . . . . 3 1 1 . Burn 4 | . . . . . . 1 . 1 1 1 . . . . . . . . . . . Meltdown 2 | . . . . . . 2 . . . . . . . . . . . . . . . Destroy 5 | . . . . . . . . . . . 5 . . . . . . . . . . Impale 2 | . . . . . . . . . . . . . . . . . . . 1 1 . Sunder 3 | . . . . . . . . . . . . . . . . . . 3 . . . Melee Attacks 55 | . . . . . . . . 4 . . . . . 2 . . . . 8 11 30 Impact 2 | . . . . . . . . . . . . . . 2 . . . . . . . Slashing 4 | . . . . . . . . 4 . . . . . . . . . . . . . Piercing 49 | . . . . . . . . . . . . . . . . . . . 8 11 30 Sneak Attacks 6 | . . . . . . . . 2 . . . . . 1 . . . . . 2 1 Combat Hostiles . | . . . . . . . . . . . . . . . . . . . . . . Follow-up Attacks 1 | . . . . . . . . . . . . . . . . . . . . . 1 Damage Inflicted 15616 | 83 55 87 . 50 644 2412 1852 1033 507 143 2086 . 1374 382 27 . 856 803 550 293 2379 Guns 6979 | 83 55 87 . 50 278 560 263 824 507 143 1994 . 194 23 27 . 298 206 . . 1387 Cannons 3940 | . . . . . 200 1570 322 . . . 31 . 333 . . . 271 597 318 . 298 Explosions 3445 | . . . . . 166 282 1260 . . . 61 . 847 235 . . 281 . . . 313 Melee 1214 | . . . . . . . . 209 . . . . . 124 . . . . 224 293 364 Ramming 38 | . . . . . . . 7 . . . . . . . . . 6 . 8 . 17 Kinetic 1326 | 83 55 87 . 50 . 638 23 . . . . . . . . . . . 92 . 298 Thermal 10475 | . . . . . 478 1492 1665 824 507 143 2086 . 1374 169 27 . 281 . 42 . 1387 Explosive 1007 | . . . . . 166 282 157 . . . . . . 89 . . . . . . 313 Electromagnetic . | . . . . . . . . . . . . . . . . . . . . . . Impact 124 | . . . . . . . . . . . . . . 124 . . . . . . . Slashing 209 | . . . . . . . . 209 . . . . . . . . . . . . . Piercing 881 | . . . . . . . . . . . . . . . . . . . 224 293 364 Entropic 1556 | . . . . . . . . . . . . . . . . . 569 803 184 . . Highest Corruption 29 | . . . . . . 3 4 2 5 5 14 14 14 1 1 1 1 2 29 . 8 Average Corruption 7 | . . . . . . 3 3 2 4 5 7 14 14 1 1 1 1 1 19 . 3 Corruption Purged . | . . . . . . . . . . . . . . . . . . . . . . Corruption Blocked 8 | . . . . . . 8 . . . . . . . . . . . . . . . Effects 225 | . . . . . . 16 16 5 14 19 39 19 44 . 3 1 . 3 34 . 12 Message Errors 58 | . . . . . . 9 1 1 3 6 9 5 11 . 1 1 . 1 8 . 2 Matter Fused 53 | . . . . . . 4 4 . 4 5 7 3 11 . 1 . . 1 9 . 4 Heat Flow Errors 24 | . . . . . . . 2 2 1 2 4 5 4 . 1 . . 1 2 . . Energy Discharges 35 | . . . . . . . 2 . 3 3 9 3 8 . . . . . 3 . 4 Parts Rejected 2 | . . . . . . . 2 . . . . . . . . . . . . . . Parts Fused 2 | . . . . . . . . . 1 . . . . . . . . . . . 1 Data Loss (minor) 16 | . . . . . . 1 1 1 1 . . 2 8 . . . . . 2 . . Data Loss (major) 9 | . . . . . . . 2 . 1 1 2 1 . . . . . . 1 . 1 Misfires 13 | . . . . . . 2 2 1 . 2 3 . 1 . . . . . 2 . . Alerts 4 | . . . . . . . . . . . 3 . 1 . . . . . . . . Misdirections 7 | . . . . . . . . . . . . . . . . . . . 7 . . Weapon Failures 2 | . . . . . . . . . . . 2 . . . . . . . . . . Overload Shots . | . . . . . . . . . . . . . . . . . . . . . . Overflow Damage 490 | . . . . . 38 71 56 82 . . . . 11 103 . . 25 54 27 7 16 Projectiles 112 | . . . . . . 31 . . . . . . . . . . 25 54 2 . . Explosions 164 | . . . . . 38 40 56 . . . . . 11 19 . . . . . . . Melee 214 | . . . . . . . . 82 . . . . . 84 . . . . 25 7 16 Knockbacks 12 | . . . . . . 6 1 . . . . . . 1 . . . . . . 4 Impact 1 | . . . . . . . . . . . . . . 1 . . . . . . . Kinetic 9 | . . . . . . 5 1 . . . . . . . . . . . . . 3 Secondary 2 | . . . . . . 1 . . . . . . . . . . . . . . 1 Self-Inflicted Damage 741 | . . . . . 38 62 113 . . . 45 . 151 324 . . . . . . 8 Shots 41 | . . . . . 1 2 10 . . . 4 . 14 10 . . . . . . . Rammed 4 | . . . . . . . 1 . . . . . . . . . . . 1 . 2 Targets Rammed 6 | . . . . . . . 1 . . . . . . . . . 2 . 1 . 2 Kicked 2 | . . . . . . . . . . . . . . . . . 2 . . . . Crushed . | . . . . . . . . . . . . . . . . . . . . . . Highest Temperature 527 | . . 11 . . 342 259 527 251 126 237 360 211 344 508 231 . 302 210 54 . 209 Average Temperature 103 | . . 5 . . 109 78 134 76 75 64 120 79 145 271 143 . 156 104 46 . 53 Received Heat Transfer 2011 | . . 66 . . 324 354 99 . . 18 259 . 179 37 9 36 134 123 103 . 270 Effects 9 | . . . . . 4 . 3 . . . . . . 2 . . . . . . . Shutdowns 1 | . . . . . . . . . . . . . . 1 . . . . . . . Energy Bleed 1 | . . . . . . . 1 . . . . . . . . . . . . . . Interference 4 | . . . . . 4 . . . . . . . . . . . . . . . . Short Circuit 1 | . . . . . . . 1 . . . . . . . . . . . . . . Damage (minor) 2 | . . . . . . . 1 . . . . . . 1 . . . . . . . Siege Activations . | . . . . . . . . . . . . . . . . . . . . . . Robots Corrupted 1 | . . . . . . . . . . . . . . 1 . . . . . . . Combat Hostiles . | . . . . . . . . . . . . . . . . . . . . . . Parts Fried 2 | . . . . . . . . . . . . . . 2 . . . . . . . Impact Corruptions 4 | . . . . . . . . . . . . . . 4 . . . . . . . Robots Melted 26 | . . . . . . 4 6 2 1 . 3 . 10 . . . . . . . . Combat Hostiles 24 | . . . . . . 4 6 2 1 . 3 . 8 . . . . . . . . Parts Melted 77 | . . . . . 1 5 21 9 4 1 6 . 23 3 . . . . . . 4 Heat Transferred 27596 | . . . . . 902 2950 8745 1692 1048 374 3449 . 5762 677 37 . 480 . 37 . 1443 Parts Sabotaged 2 | . . . . . . . . . . . . . . . . . 2 . . . . Parts Stolen . | . . . . . . . . . . . . . . . . . . . . . . Parts Stripped . | . . . . . . . . . . . . . . . . . . . . . . Power Chain Reactions . | . . . . . . . . . . . . . . . . . . . . . . Alert | -11 -10 -10 -10 -9 -8 -7 -7 -6 -5 -5 -5 -5 -4 -4 -4 -4 -4 -3 -3 -2 -1 ------- Run | Yrd Mat Min Exi Min Mat Fac Sto Fac Fac Upp Upp Zhi Pro Fac Upp Upp War Pro Res Res Acc Peak Influence 953 | 10 61 43 . 10 226 487 727 337 65 . . . . 902 . . . . 953 332 345 Initial 900 | . 6 23 . . 3 4 205 330 . . . . . 900 . . . . 900 320 10 Average 214 | 1 23 35 . 4 19 126 478 140 17 . . . . 740 . . . . 747 195 166 Maximum Alert Level 3 | . . . . . 1 2 3 1 . . . . . 3 . . . . 3 1 1 Low Security (%) 62 | 100 100 100 . 100 98 74 . 75 100 . . . . . . . . . . 60 53 Level 1 17 | . . . . . 1 15 33 24 . . . . . . . . . . . 39 46 Level 2 11 | . . . . . . 10 60 . . . . . . 31 . . . . 39 . . Level 3 8 | . . . . . . . 5 . . . . . . 68 . . . . 60 . . Level 4 . | . . . . . . . . . . . . . . . . . . . . . . Level 5 . | . . . . . . . . . . . . . . . . . . . . . . High Security . | . . . . . . . . . . . . . . . . . . . . . . Max Security . | . . . . . . . . . . . . . . . . . . . . . . Squads Dispatched 34 | . . . . . 1 9 6 4 2 . . . 1 2 . . . . 2 1 6 Investigation 2 | . . . . . . . 1 1 . . . . . . . . . . . . . Extermination 15 | . . . . . . 5 1 3 2 . . . . 1 . . . . 1 . 2 Reinforcement 9 | . . . . . 1 2 2 . . . . . . 1 . . . . 1 1 1 Assault 5 | . . . . . . 2 2 . . . . . 1 . . . . . . . . Garrison 3 | . . . . . . . . . . . . . . . . . . . . . 3 Intercept . | . . . . . . . . . . . . . . . . . . . . . . Searches Triggered 4 | . . . . . . . . . . . . . . 2 . . . . 2 . . Construction Impeded 3 | . . . . . . . 2 . . . . . . 1 . . . . . . . Haulers Reinforced . | . . . . . . . . . . . . . . . . . . . . . . Active Scanning Responses . | . . . . . . . . . . . . . . . . . . . . . . Cargo Convoy Interrupts . | . . . . . . . . . . . . . . . . . . . . . . Stealth | -11 -10 -10 -10 -9 -8 -7 -7 -6 -5 -5 -5 -5 -4 -4 -4 -4 -4 -3 -3 -2 -1 --------- Run | Yrd Mat Min Exi Min Mat Fac Sto Fac Fac Upp Upp Zhi Pro Fac Upp Upp War Pro Res Res Acc Distress Signals 17 | . . . . . . 3 2 . . . . . . . . . . . 2 8 2 Communications Jammed . | . . . . . . . . . . . . . . . . . . . . . . Distress Signals . | . . . . . . . . . . . . . . . . . . . . . . Times Spotted 295 | . 3 4 . . 10 39 31 5 5 3 16 . 23 7 4 13 55 12 15 10 40 Peak Tracking Total 11 | . 2 2 . . 5 5 9 2 2 3 5 . 7 6 3 9 11 3 9 5 11 Tactical Retreats 32 | . . . . . 1 1 4 . . . 5 . 2 . 2 4 2 . 5 1 5 Traps | -11 -10 -10 -10 -9 -8 -7 -7 -6 -5 -5 -5 -5 -4 -4 -4 -4 -4 -3 -3 -2 -1 ------- Run | Yrd Mat Min Exi Min Mat Fac Sto Fac Fac Upp Upp Zhi Pro Fac Upp Upp War Pro Res Res Acc Traps Triggered 8 | . . . . . . . . 2 . 1 . . . . . . . . 5 . . Indirectly . | . . . . . . . . . . . . . . . . . . . . . . Trap Hack Attempts . | . . . . . . . . . . . . . . . . . . . . . . Triggered . | . . . . . . . . . . . . . . . . . . . . . . Disarmed . | . . . . . . . . . . . . . . . . . . . . . . Reprogrammed . | . . . . . . . . . . . . . . . . . . . . . . Reused . | . . . . . . . . . . . . . . . . . . . . . . Traps Extracted . | . . . . . . . . . . . . . . . . . . . . . . Installed . | . . . . . . . . . . . . . . . . . . . . . . Triggered 9 | . . . . . . . . . . . . . 1 . . . 8 . . . . Machines | -11 -10 -10 -10 -9 -8 -7 -7 -6 -5 -5 -5 -5 -4 -4 -4 -4 -4 -3 -3 -2 -1 ---------- Run | Yrd Mat Min Exi Min Mat Fac Sto Fac Fac Upp Upp Zhi Pro Fac Upp Upp War Pro Res Res Acc Machines Disabled 8 | . . . . . . 1 2 1 . . . . . 3 . . . . . . 1 Max in Single Turn 3 | . . . . . . 1 1 1 . . . . . 3 . . . . . . 1 Garrison Access 2 | . . . . . . . . . . . . . . . . . . . . 2 . Machines Repaired . | . . . . . . . . . . . . . . . . . . . . . . Machines Dismantled . | . . . . . . . . . . . . . . . . . . . . . . Machines Sabotaged . | . . . . . . . . . . . . . . . . . . . . . . Overloaded Fab Kills . | . . . . . . . . . . . . . . . . . . . . . . Hacking | -11 -10 -10 -10 -9 -8 -7 -7 -6 -5 -5 -5 -5 -4 -4 -4 -4 -4 -3 -3 -2 -1 --------- Run | Yrd Mat Min Exi Min Mat Fac Sto Fac Fac Upp Upp Zhi Pro Fac Upp Upp War Pro Res Res Acc Machines Accessed 37 | . 4 . 2 . 2 4 3 4 2 1 . 9 . 2 . . 1 . . 1 2 Terminals 19 | . 3 . . . 2 2 3 4 1 . . . . 1 . . . . . 1 2 Fabricators 1 | . . . . . . 1 . . . . . . . . . . . . . . . Repair Stations . | . . . . . . . . . . . . . . . . . . . . . . Recycling Units 3 | . 1 . . . . 1 . . . . . . . 1 . . . . . . . Scanalyzers 1 | . . . . . . . . . 1 . . . . . . . . . . . . Garrison Access . | . . . . . . . . . . . . . . . . . . . . . . Total Hacks 99 | . 12 . 2 . 3 8 7 6 3 1 . 48 . 3 . . 1 . . 2 3 Successful 68 | . 5 . 2 . 1 1 3 1 2 1 . 48 . 1 . . 1 . . 1 1 Failed 31 | . 7 . . . 2 7 4 5 1 . . . . 2 . . . . . 1 2 Catastrophic 4 | . . . . . . 1 1 1 . . . . . . . . . . . 1 . Database Lockouts . | . . . . . . . . . . . . . . . . . . . . . . Manual 20 | . 6 . 1 . 2 4 2 3 . . . . . . . . . . . 1 1 Terminals 40 | . 11 . . . 3 5 7 6 1 . . . . 2 . . . . . 2 3 Fabricators 1 | . . . . . . 1 . . . . . . . . . . . . . . . Repair Stations . | . . . . . . . . . . . . . . . . . . . . . . Recycling Units 4 | . 1 . . . . 2 . . . . . . . 1 . . . . . . . Scanalyzers 2 | . . . . . . . . . 2 . . . . . . . . . . . . Garrison Access . | . . . . . . . . . . . . . . . . . . . . . . Terminal Hacks 59 | . 1 . 2 . . 1 1 1 1 1 . 48 . 1 . . 1 . . . 1 Record 39 | . . . 1 . . . . . . . . 36 . 1 . . . . . . 1 Part Schematic 4 | . . . . . . . . . . . . 4 . . . . . . . . . Robot Analysis 4 | . . . . . . . . . . . . 4 . . . . . . . . . Prototype ID Bank 4 | . . . . . . . . . . . . 4 . . . . . . . . . Open Door 3 | . . . . . . . 1 . . 1 . . . . . . 1 . . . . Emergency Access Points 1 | . 1 . . . . . . . . . . . . . . . . . . . . Locate Traps 1 | . . . . . . . . 1 . . . . . . . . . . . . . Registered Components 2 | . . . . . . 1 . . 1 . . . . . . . . . . . . Derelict Proto ID Bank 1 | . . . 1 . . . . . . . . . . . . . . . . . . Fabricator Hacks . | . . . . . . . . . . . . . . . . . . . . . . Repair Station Hacks . | . . . . . . . . . . . . . . . . . . . . . . Recycling Unit Hacks . | . . . . . . . . . . . . . . . . . . . . . . Scanalyzer 1 | . . . . . . . . . 1 . . . . . . . . . . . . Insert Component 1 | . . . . . . . . . 1 . . . . . . . . . . . . Garrison Access Hacks . | . . . . . . . . . . . . . . . . . . . . . . Unauthorized Hacks 8 | . 4 . . . 1 . 2 . . . . . . . . . . . . 1 . Terminals 8 | . 4 . . . 1 . 2 . . . . . . . . . . . . 1 . Track 2 | . 1 . . . . . 1 . . . . . . . . . . . . . . Botnet 5 | . 2 . . . 1 . 1 . . . . . . . . . . . . 1 . Operators 1 | . 1 . . . . . . . . . . . . . . . . . . . . Fabricators . | . . . . . . . . . . . . . . . . . . . . . . Repair Stations . | . . . . . . . . . . . . . . . . . . . . . . Recycling Units . | . . . . . . . . . . . . . . . . . . . . . . Scanalyzers . | . . . . . . . . . . . . . . . . . . . . . . Garrison Access . | . . . . . . . . . . . . . . . . . . . . . . Data Cores Recovered . | . . . . . . . . . . . . . . . . . . . . . . Used . | . . . . . . . . . . . . . . . . . . . . . . Hacking Detections 19 | . 3 . . . 1 3 2 4 1 . . . . 2 . . . . . 1 2 Full Trace Events 2 | . . . . . . . 1 1 . . . . . . . . . . . . . Feedback Events . | . . . . . . . . . . . . . . . . . . . . . . Feedback Blocked . | . . . . . . . . . . . . . . . . . . . . . . Robot Schematics Acquired . | . . . . . . . . . . . . . . . . . . . . . . Robots Built . | . . . . . . . . . . . . . . . . . . . . . . Authchips . | . . . . . . . . . . . . . . . . . . . . . . Time . | . . . . . . . . . . . . . . . . . . . . . . Total Robot Build Rating . | . . . . . . . . . . . . . . . . . . . . . . Part Schematics Acquired 4 | . . . . . . . . . . . . 4 . . . . . . . . . Parts Built . | . . . . . . . . . . . . . . . . . . . . . . Authchips . | . . . . . . . . . . . . . . . . . . . . . . Time . | . . . . . . . . . . . . . . . . . . . . . . Total Part Build Rating . | . . . . . . . . . . . . . . . . . . . . . . Parts Repaired . | . . . . . . . . . . . . . . . . . . . . . . Time . | . . . . . . . . . . . . . . . . . . . . . . Parts Recycled . | . . . . . . . . . . . . . . . . . . . . . . Recycled Matter . | . . . . . . . . . . . . . . . . . . . . . . Retrieved Matter . | . . . . . . . . . . . . . . . . . . . . . . Retrieved Components . | . . . . . . . . . . . . . . . . . . . . . . Parts Scanalyzed 1 | . . . . . . . . . 1 . . . . . . . . . . . . Part Schematics Acquired . | . . . . . . . . . . . . . . . . . . . . . . Parts Damaged 1 | . . . . . . . . . 1 . . . . . . . . . . . . Bothacking | -11 -10 -10 -10 -9 -8 -7 -7 -6 -5 -5 -5 -5 -4 -4 -4 -4 -4 -3 -3 -2 -1 ------------ Run | Yrd Mat Min Exi Min Mat Fac Sto Fac Fac Upp Upp Zhi Pro Fac Upp Upp War Pro Res Res Acc Used RIF Installer . | . . . . . . . . . . . . . . . . . . . . . . Robots Hacked . | . . . . . . . . . . . . . . . . . . . . . . Non-combat . | . . . . . . . . . . . . . . . . . . . . . . Combat . | . . . . . . . . . . . . . . . . . . . . . . Robot Hacks Applied . | . . . . . . . . . . . . . . . . . . . . . . Relay Couplers Released 2 | . . . . . . . . . . . . . . . . . . . . 2 . Machine Destruction 2 | . . . . . . . . . . . . . . . . . . . . 2 . Fabnet Peak Effective % . | . . . . . . . . . . . . . . . . . . . . . . Robots Rewired . | . . . . . . . . . . . . . . . . . . . . . . Allies Hacked . | . . . . . . . . . . . . . . . . . . . . . . Hacks Repelled . | . . . . . . . . . . . . . . . . . . . . . . Allies | -11 -10 -10 -10 -9 -8 -7 -7 -6 -5 -5 -5 -5 -4 -4 -4 -4 -4 -3 -3 -2 -1 -------- Run | Yrd Mat Min Exi Min Mat Fac Sto Fac Fac Upp Upp Zhi Pro Fac Upp Upp War Pro Res Res Acc Total Allies 2 | . . . . . . . 2 . . . . . . . . . . . . . . Largest Group 2 | . . . . . . . 2 . . . . . . . . . . . . . . Highest-Rated Group 62 | . . . . . . . 62 . . . . . . . . . . . . . . Highest-Rated Ally 31 | . . . . . . . 31 . . . . . . . . . . . . . . Total Orders . | . . . . . . . . . . . . . . . . . . . . . . Ally Attacks 21 | . . . . . . . 21 . . . . . . . . . . . . . . Total Damage 190 | . . . . . . . 190 . . . . . . . . . . . . . . Kills 1 | . . . . . . . 1 . . . . . . . . . . . . . . Allies Corrupted . | . . . . . . . . . . . . . . . . . . . . . . Allies Melted 2 | . . . . . . . . . . . . . . . . . 1 . . . 1 Intel | -11 -10 -10 -10 -9 -8 -7 -7 -6 -5 -5 -5 -5 -4 -4 -4 -4 -4 -3 -3 -2 -1 ------- Run | Yrd Mat Min Exi Min Mat Fac Sto Fac Fac Upp Upp Zhi Pro Fac Upp Upp War Pro Res Res Acc Robot Analysis Total 4 | . . . . . . . . . . . . 4 . . . . . . . . . Derelict Logs Recovered 7 | . . . . 1 . . . . . 1 . . 2 . 2 1 . . . . . Drone Launches . | . . . . . . . . . . . . . . . . . . . . . . Drone Recoveries . | . . . . . . . . . . . . . . . . . . . . . . Exploration | -11 -10 -10 -10 -9 -8 -7 -7 -6 -5 -5 -5 -5 -4 -4 -4 -4 -4 -3 -3 -2 -1 ------------- Run | Yrd Mat Min Exi Min Mat Fac Sto Fac Fac Upp Upp Zhi Pro Fac Upp Upp War Pro Res Res Acc Turns Passed 15886 | 158 297 158 312 67 472 2867 731 1605 1015 649 1264 546 1088 587 282 110 786 419 664 1009 800 Spaces Moved 9675 | 118 261 122 283 52 364 1635 358 862 470 303 423 224 295 142 550 183 549 328 498 660 995 Core 830 | 7 . . . . . 1 . . . . . . 150 76 52 116 152 . 186 . 90 Treads 4020 | . . . . . . 1248 123 862 470 303 423 224 145 . 35 . . . 187 . . Legs 482 | . . . . . . . . . . . . . . . . . 100 328 54 . . Wheels 2076 | 111 261 122 283 52 364 386 235 . . . . . . 23 . . 15 . . 224 . Hover 1691 | . . . . . . . . . . . . . . . . . 282 . 71 436 902 Flight 576 | . . . . . . . . . . . . . . 43 463 67 . . . . 3 Fastest Speed 27 | 50 80 110 110 110 101 130 130 170 170 170 163 240 50 40 40 40 50 115 50 58 27 Average Speed 139 | 78 105 112 110 110 107 157 157 170 170 206 250 240 347 396 48 46 103 115 117 92 55 Slowest Speed 1150 | 80 110 140 110 110 145 750 410 250 170 250 400 240 1150 750 240 50 260 115 320 215 300 Overloaded Moves . | . . . . . . . . . . . . . . . . . . . . . . Propulsion Burnouts . | . . . . . . . . . . . . . . . . . . . . . . Robots Hopped . | . . . . . . . . . . . . . . . . . . . . . . Cave-ins Triggered 1 | . . . . . . 1 . . . . . . . . . . . . . . . Teleports 1 | . . . . . . . . . . . . 1 . . . . . . . . . Exploration Rate (%) 35 | 6 42 19 65 12 28 20 47 16 11 52 62 62 43 7 63 47 76 57 16 14 19 Regions Visited 21 Branch Regions 12 Pre-discovered Areas 5 | . . . 1 . . . . . . . . 3 1 . . . . . . . . Known Exits Taken 9 | . . . . 1 . 1 1 . 1 1 1 1 1 . 1 . . . . . . Unknown Exits Taken 12 | 1 1 1 1 . 1 . . 1 . . . . . 1 . 1 1 1 1 1 . Scrap Searched 10 | . . 1 . 1 . . . . . . 1 . 2 . 2 2 . 1 . . . Spaces Dug 38 | . . . . . . 16 . . . . . . . 1 . . . . . 2 19 Terrain Destroyed 314 | . . . . . 29 78 70 . . . . . 4 32 . . 25 35 16 2 23 Melee 21 | . . . . . . . . . . . . . . 1 . . . . . 2 18 Projectile 74 | . . . . . 2 7 3 . . . . . 2 . . . 12 28 16 . 4 AOE 219 | . . . . . 27 71 67 . . . . . 2 31 . . 13 7 . . 1 Terrain Rammed . | . . . . . . . . . . . . . . . . . . . . . . Walls Destroyed . | . . . . . . . . . . . . . . . . . . . . . . Machines Disabled . | . . . . . . . . . . . . . . . . . . . . . . Actions | -11 -10 -10 -10 -9 -8 -7 -7 -6 -5 -5 -5 -5 -4 -4 -4 -4 -4 -3 -3 -2 -1 --------- Run | Yrd Mat Min Exi Min Mat Fac Sto Fac Fac Upp Upp Zhi Pro Fac Upp Upp War Pro Res Res Acc Total 11355 | 168 275 130 283 55 410 1793 490 959 658 317 525 232 351 156 560 207 745 346 541 1031 1123 Wait 947 | 32 3 . . . 3 54 73 48 164 8 29 . 10 . 2 21 146 . . 312 42 Move 9654 | 117 260 121 282 51 363 1633 357 861 469 302 422 223 294 141 549 182 549 327 497 659 995 Hop . | . . . . . . . . . . . . . . . . . . . . . . Pick Up 87 | 5 4 . 1 1 9 9 8 7 4 2 2 3 6 2 1 . 4 2 2 10 5 Fast Attach 102 | 7 . . . . 6 6 3 6 1 . 2 3 1 4 3 1 12 1 15 24 7 Attach 78 | . . 1 . . 4 11 7 6 1 . 11 1 14 3 2 2 2 2 3 1 7 Detach 20 | . . . . . . . 4 1 . . 2 1 7 1 1 1 . . . 2 . Swap 42 | . 3 2 . . 2 7 5 1 4 1 3 1 . . . . 9 . . . 4 Drop 54 | . 1 . . . 3 2 9 8 1 . 2 . 3 . . . 7 1 1 12 4 Fire 315 | 7 4 6 . 3 20 70 23 17 14 4 52 . 16 3 2 . 15 13 14 . 32 Melee 50 | . . . . . . . . 4 . . . . . 2 . . . . 8 11 25 Ram 3 | . . . . . . . 1 . . . . . . . . . . . . . 2 Kick 1 | . . . . . . . . . . . . . . . . . 1 . . . . Crush 1 | . . . . . . . . . . . . . . . . . . . 1 . . Escape Stasis 1 | . . . . . . 1 . . . . . . . . . . . . . . . Rewire . | . . . . . . . . . . . . . . . . . . . . . . Trap . | . . . . . . . . . . . . . . . . . . . . . . Miscellaneous . | . . . . . . . . . . . . . . . . . . . . . . Route ------- -11/Scrapyard -10/Materials -10/Mines -10/Exiles -9/Mines -8/Materials -7/Factory (discovered 2 exits: *Fac / *Sto) -7/Storage -6/Factory -5/Factory -5/Upper Caves -5/Upper Caves (discovered 2 exits: *Fac / *Zhi) -5/Zhirov -4/Proximity Caves -4/Factory -4/Upper Caves -4/Upper Caves -4/Warlord -3/Proximity Caves -3/Research (discovered 3 exits: *Res / Arm / Qua) -2/Research (discovered 3 exits: *Acc x2 / [*Tes]) -1/Access History --------- Turn | Location | Event 4 | -11/Scrapyard | Discovered new exit (range 16) 159 | -11/Scrapyard | Entered Materials 316 | -10/Materials | Build established: Mutant 392 | -10/Materials | Discovered new exit (range 12) 456 | -10/Materials | Entered Mines 481 | -10/Mines | Met a Derelict bent on vengeance 499 | -10/Mines | Deemed a non-threat by the Exiles lab entrance 499 | -10/Mines | Discovered new exit (range 5) 563 | -10/Mines | Assembled infested the area 614 | -10/Mines | Entered Exiles 641 | -10/Exiles | Met 8R-AWN 661 | -10/Exiles | Met EX-HEX 707 | -10/Exiles | Met EX-DEC 713 | -10/Exiles | Learned location of Zion (-7) 762 | -10/Exiles | Met EX-BIN 779 | -10/Exiles | Aligned with FarCom system 781 | -10/Exiles | Given EX-Vault access code 808 | -10/Exiles | Opened EX-Vault 815 | -10/Exiles | Found Firepult 838 | -10/Exiles | Warned to stay clear of 0b10 Research branches 912 | -10/Exiles | Discovered new exit (range 12) 926 | -10/Exiles | Left Exiles lab with Firepult 926 | -10/Exiles | Entered Mines 941 | -9/Mines | Identified exit to Materials 993 | -9/Mines | Entered Materials 993 | -8/Materials | Evolved 4 slots: Propulsion x1, Utility x2, Weapon x1 1240 | -8/Materials | Discovered new exit (range 8) 1367 | -8/Materials | Build established: Skirmisher 1465 | -8/Materials | Entered Factory 1465 | -7/Factory | Evolved 2 slots: Utility x2 1492 | -7/Factory | Lost 4 parts (1p2n1u) 1835 | -7/Factory | Lost 7 parts (1p1n5w) 2069 | -7/Factory | Build established: Mutant 2918 | -7/Factory | Build established: Skirmisher 3254 | -7/Factory | Crushed by falling debris 3280 | -7/Factory | Discovered new exit (range 4) 3292 | -7/Factory | Identified exit to Factory 3525 | -7/Factory | Discovered new exit (range 6) 4085 | -7/Factory | Lost 3 parts (3n) 4265 | -7/Factory | First assault squad dispatched 4330 | -7/Factory | Identified exit to Storage 4332 | -7/Factory | Entered Storage 4529 | -7/Storage | Met a pair of Derelict thieves 4619 | -7/Storage | Destroyed 9 combat bots 4801 | -7/Storage | Discovered exit to Factory (range 18) 5025 | -7/Storage | Core integrity fell below 50% 5063 | -7/Storage | Entered Factory 5063 | -6/Factory | Evolved 2 slots: Propulsion x1, Utility x1 5229 | -6/Factory | Discovered new exit (range 8) 5715 | -6/Factory | Build established: Tank 6668 | -6/Factory | Entered another Factory area 6668 | -5/Factory | Evolved 2 slots: Power x1, Utility x1 6784 | -5/Factory | Build established: Scavenger-Assassin 7173 | -5/Factory | Build established: Assassin 7364 | -5/Factory | Found Imp. Powered Armor 7676 | -5/Factory | Discovered new exit (range 3) 7682 | -5/Factory | Identified exit to Upper Caves 7683 | -5/Factory | Entered Upper Caves 7983 | -5/Upper Caves | Build established: Mutant 8253 | -5/Upper Caves | Attracted the attention of an 0b10 checkpoint 8307 | -5/Upper Caves | Identified exit to Upper Caves 8332 | -5/Upper Caves | Entered another Upper Caves area 8644 | -5/Upper Caves | Discovered new exit (range 15) 8676 | -5/Upper Caves | Identified exit to Factory 9025 | -5/Upper Caves | Attracted the attention of an 0b10 base 9187 | -5/Upper Caves | System corruption reached 10% 9242 | -5/Upper Caves | Lost 6 parts (1p2n3u) 9368 | -5/Upper Caves | Lost 6 parts (2p2n2w) 9540 | -5/Upper Caves | Attracted the attention of an 0b10 checkpoint 9586 | -5/Upper Caves | Discovered new exit (range 4) 9593 | -5/Upper Caves | Identified exit to Zhirov 9596 | -5/Upper Caves | Entered Zhirov 9596 | -5/Zhirov | Discovered new exit (range 3) 9640 | -5/Zhirov | Met Zhirov 9710 | -5/Zhirov | Learned location of Quarantine (-3) 9710 | -5/Zhirov | Learned location of Testing (-2) 9710 | -5/Zhirov | Learned location of Command (-1) 9789 | -5/Zhirov | Zhirov requested help retrieving the SGEMP Prototype 9835 | -5/Zhirov | Found Alien Artifact 9835 | -5/Zhirov | Identified Integrated Dissipator 9835 | -5/Zhirov | Installed Integrated Dissipator, increased core heat dissipation (+20) 9872 | -5/Zhirov | Found Alien Artifact 9872 | -5/Zhirov | Identified Transdimensional Reconstructor 9872 | -5/Zhirov | Warped through subspace 10140 | -5/Zhirov | Identified exit to Proximity Caves 10142 | -5/Zhirov | Entered Proximity Caves 10210 | -4/Proximity Caves | Attracted the attention of an 0b10 outpost 10235 | -4/Proximity Caves | Destroyed 9 combat bots 10358 | -4/Proximity Caves | Lost 4 parts (1n2u1w) 10541 | -4/Proximity Caves | Spotted B-86 Titan 10549 | -4/Proximity Caves | Core integrity fell below 50% 10560 | -4/Proximity Caves | Destroyed B-86 Titan 10593 | -4/Proximity Caves | Learned location of Armory (-3) 10631 | -4/Proximity Caves | Spotter reported a threat 10879 | -4/Proximity Caves | Spotter reported a threat 11015 | -4/Proximity Caves | Spotter reported a threat 11050 | -4/Proximity Caves | Spotter reported a threat 11074 | -4/Proximity Caves | Spotter reported a threat 11103 | -4/Proximity Caves | Spotter reported a threat 11127 | -4/Proximity Caves | Spotter reported a threat 11133 | -4/Proximity Caves | Discovered exit to Factory (range 5) 11186 | -4/Proximity Caves | Spotter reported a threat 11230 | -4/Proximity Caves | Entered Factory 11230 | -4/Factory | Evolved 2 slots: Propulsion x1, Utility x1 11480 | -4/Factory | Search patrols dispatched 11758 | -4/Factory | Search patrols dispatched 11765 | -4/Factory | Spotted B-86 Titan 11791 | -4/Factory | Released all parts (6) 11806 | -4/Factory | Discovered new exit (range 13) 11817 | -4/Factory | Entered Upper Caves 11822 | -4/Upper Caves | Lost 7 parts (2n3u2w) 11827 | -4/Upper Caves | Learned 4 Research zone layouts 11853 | -4/Upper Caves | Attracted the attention of an 0b10 checkpoint 11880 | -4/Upper Caves | Identified exit to Upper Caves 12073 | -4/Upper Caves | Released all parts (4) 12099 | -4/Upper Caves | Entered another Upper Caves area 12149 | -4/Upper Caves | Attracted the attention of an 0b10 checkpoint 12165 | -4/Upper Caves | Core integrity fell below 50% 12206 | -4/Upper Caves | Discovered new exit (range 8) 12209 | -4/Upper Caves | Entered Warlord 12227 | -4/Warlord | System corruption cleaned by Quarantine Array 12367 | -4/Warlord | Met Warlord 12385 | -4/Warlord | Warlord's base attacked by MAIN.C 12462 | -4/Warlord | Found Prototype Energy Gun 12462 | -4/Warlord | Identified Vortex Rail 12470 | -4/Warlord | Found Prototype Energy Cannon 12470 | -4/Warlord | Identified Vortex Driver 12476 | -4/Warlord | Found Vortex Driver 12487 | -4/Warlord | Found Prototype Energy Gun 12487 | -4/Warlord | Identified Vortex Shotgun 12491 | -4/Warlord | Found Vortex Shotgun 12607 | -4/Warlord | Build established: Tank 12735 | -4/Warlord | Warlord forces counterattacked 12799 | -4/Warlord | Spotted Executioner 12822 | -4/Warlord | Spotted B-90 Cyclops 12843 | -4/Warlord | Spotted Executioner 12845 | -4/Warlord | Spotted Executioner 12879 | -4/Warlord | Lost 25 allies 12893 | -4/Warlord | Spotted Striker 12917 | -4/Warlord | Destroyed Striker 12940 | -4/Warlord | Lost 6 allies 12975 | -4/Warlord | Discovered new exit (range 15) 12985 | -4/Warlord | Spotted Executioner 12985 | -4/Warlord | Spotted B-90 Cyclops 12985 | -4/Warlord | Spotted Striker 12985 | -4/Warlord | Spotted Executioner 12995 | -4/Warlord | Entered Proximity Caves 12997 | -3/Proximity Caves | Spotter reported a threat 12998 | -3/Proximity Caves | Spotter reported a threat 13026 | -3/Proximity Caves | Lost 3 parts (1n2u) 13113 | -3/Proximity Caves | Lost 4 parts (1u3w) 13139 | -3/Proximity Caves | Spotter reported a threat 13244 | -3/Proximity Caves | Spotter reported a threat 13276 | -3/Proximity Caves | Spotter reported a threat 13337 | -3/Proximity Caves | Spotter reported a threat 13376 | -3/Proximity Caves | Build established: Scavenger-Mutant 13384 | -3/Proximity Caves | Spotter reported a threat 13401 | -3/Proximity Caves | Discovered new exit (range 12) 13414 | -3/Proximity Caves | Entered Research 13414 | -3/Research | Evolved 2 slots: Utility x2 13415 | -3/Research | Identified exit to Armory 13415 | -3/Research | Identified exit to Quarantine 13502 | -3/Research | System corruption reached 10% 13664 | -3/Research | Search patrols dispatched 13914 | -3/Research | Search patrols dispatched 13916 | -3/Research | Released all parts (8) 13941 | -3/Research | Lost 6 parts (1p2n2u1w) 14069 | -3/Research | Discovered new exit (range 12) 14078 | -3/Research | Entered another Research area 14078 | -2/Research | Warlord forces began assault on 0b10 14078 | -2/Research | Evolved 2 slots: Utility x2 14188 | -2/Research | Research machine network offline 14209 | -2/Research | Build established: Mutant 14300 | -2/Research | Discovered new exit (range 11) 14472 | -2/Research | Met DD-05H 14478 | -2/Research | Met up with Warlord 14493 | -2/Research | Spotted Striker 14696 | -2/Research | Found Prototype Processor 14696 | -2/Research | Identified Exp. Melee Analysis Suite 14740 | -2/Research | Found Exp. Melee Analysis Suite 14762 | -2/Research | Borebot progress halted 14878 | -2/Research | Discovered new exit (range 13) 14884 | -2/Research | Discovered new exit (range 15) 14920 | -2/Research | Borebot progress halted 14988 | -2/Research | Build established: Scavenger-Gladiator 15080 | -2/Research | Warlord invited to help at Command 15087 | -2/Research | Entered Access 15087 | -1/Access | Evolved 2 slots: Propulsion x1, Weapon x1 15131 | -1/Access | Garrison activated, responded to threat 15543 | -1/Access | Lost 4 parts (4u) 15804 | -1/Access | Lost 16 parts (2p3n6u5w) 15815 | -1/Access | Core integrity fell below 50% 15846 | -1/Access | Core integrity fell below 20% 15873 | -1/Access | Lost 6 parts (3n3u) 15887 | -1/Access | Destroyed by P-80 Master with Gamma Rifle Last Messages --------------- 15842_ Penetrated by Slug. 15842_ Imp. Antigrav System destroyed. 15842_ Penetrated by Slug. 15842_ Transport Network Coupler destroyed. 15843_ Dropped Mic. Antimatter Reactor. 15843_ Slug penetrates Wall. 15844_ The unstable cave ceiling collapses. 15844_ U-05 Engineer builds a Wall. 15845_ Penetrated by Slug. 15846_ U-05 Engineer builds a Door. 15847_ The unstable cave ceiling collapses. 15847_ Slug penetrates Door. 15848_ Slug penetrates Wall. 15848_ U-05 Engineer builds a Wall. 15855_ Slug penetrates Wall. 15855_ Penetrated by Slug. 15884_ Acquired Prototype Flight Unit. 15884_ Identified Cld. Q-thruster. 15885_ Acquired Cld. Q-thruster. [Achievement: 20k Club] Map ----- +----------------------------------------------------+ | ????? #???# #??? | | ??????? #???# #??? | | ????????##############/#############+##+#???# #??? | | ????????????????# #??????????????# #??? | | ????????????????# #??????????????# #??? | | ????????????????# "" #??????????????# #??? | | ????????????????#""" #??????????????# #??? | | ????????????????#"T ! #??????????????# #??? | | ??????????#"" #??????????????# #??? | | ######??????????#"" !!#??????????????# #??? | | ##??????????#"" ! #??????????????# #??? | | =##??????????# !! #??????????????# #??? | | [ ##??????????# #????g?????????# #??? | | ##??????????# #?????h????????# #??? | | ##??????????# #????h?????????# #??? | | ##??????????###########/#####+########### #??? | | = ############## #??? | | # # ##############p#####+#####+#??? | | [ # # #??###########/## #? ??? | | # + #??# p # #? ??? | | # * # #??# !# # ?? | | # # #??# # # ?? | | ###########+##+### #### ==! k # # ? | | [!#######!= ##! ### ! # #* ? | | =%+%! !%! ### ==! ###+#### # | | =!##########/## ### @ # ## # | | *###### ! ####### % # ######### | | ##???# |%=##????# p [ ! #?? | | ##???#"" ! ##????# w # #?? | | = ##??##"" ##????# # #?? | | ##??##"" ##????# # !! #?? | | ##??##T ##????#######+###### !! #?? | | ######??##"" ##?????????????????# #?? | | ######??##" ##????????????????? #?? | | ????????##"" ##????????????????? #?? | | ????????## ##????????????????? #?? | | ????????## ##???????????????? #?? | | ????????## ##???????????????? !! #?? | | ????????## ##???????????????? !! ??? | | ????????##"#######???????????????? !! ????? | | ????????###### ###?????????????????## ###?#??????? | | ????????#####????????????????????????+???????????? | | ?????????????????????????????????????????????????? | | ?????????????????????????????????????????????????? | | ?????????????????????????????????????????????????? | | ?????????????????????????????????????????????????? | | ?????????????????????????????????????????????????? | | ?????????????????????????????????????????????????? | | ?????????????????????????????????????????????????? | | ?????????????????????????????????????????????????? | +----------------------------------------------------+ Best States ------------- Heat Dissipation 116 Energy Generation 37 Energy Capacity 755 Matter Stores 300 Matter Capacity 300 Sight Range 18 Robot Scan Range 15 Terrain Scan Range 16 Terrain Scan Density 210 Additional Mass Support 9 EM Shielding 3 Corruption Containment 8 Corruption Block 8 Armor Coverage 625 Resistance: TH 30 Power Shielding 90 Utility Shielding 66 Weapon Shielding 66 Evasion (%) 74 Targeting Accuracy 8 Melee Accuracy 24 Launcher Accuracy 40 Target Analysis 6 Recoil Reduction 4 Particle Charging 30 Kinecelleration 40 Offensive Hacking 22 Defensive Hacking 10 Item Schematics ----------------- Assault Drone Bay | -5/Zhirov | Free Exp. Heat Sink | -5/Zhirov | Free Exp. Optical Array | -5/Zhirov | Free Imp. Arc Thrower | -5/Zhirov | Free Robot Schematics ------------------ None Fabricated ------------ Nothing Alien Tech Used ----------------- Integrated Dissipator Transdimensional Reconstructor Achievements -------------- 20k Club Pyromaniac Subspace Traveler Challenges ------------ None Game ------ Seed SupersonicPhasingBoomstick Manual? 0 Play Time 03:02:24 Cumulative 99.4 hours Start 2024.10.19 @ 04:15:21 End 2024.10.25 @ 00:31:00 Sessions 7 Manual Loads 0 Difficulty Rogue Special Mode None Game No. 124 Rogue 124 Adventurer 0 Explorer 0 Win Type - Total 0 Types 0/0/0/0/0/0/0/0/0 Lore% 45 Gallery% 43 Achievement% 41 Wizard Run 0 Options --------- Layout 0 ASCII 0 Keyboard 0 Movement Arrows Keybinds 0 Fullscreen 1 Font 20/SmallcapsGlow Map View 66x50 Zoom Use 1% Tactical HUD 1 Map Filters NONE Filters NONE Steam 1 RUN: a900c086-a3ed-46bf-bf12-eefa498e6f1a